{"text_format":"3","workbook":"xlsx","n_sheets":4,"sheets":["Dashboard","Lançamentos","Configuração","Gráfico"],"not_rendered":{"charts":2},"read":"whole","date_system":"1900"}

{"sheet":"Dashboard","index":0,"n_rows":37,"n_cols":7,"rows_kept":37,"merged":[[0,0,0,7],[1,0,1,7],[3,0,3,1],[3,2,3,3],[3,4,3,5],[3,6,3,7],[4,0,4,1],[4,2,4,3],[4,4,4,5],[4,6,4,7],[7,5,7,7],[21,5,21,7]]}
["💰 MEU CONTROLE FINANCEIRO"]
["Preencha a aba 'Lançamentos' e veja tudo atualizar automaticamente."]
[]
["📥 Receitas",null,"📤 Despesas",null,"💚 Saldo",null,"🎯 Meta"]
[{"$f":"SUM(Lançamentos!E4:E303)","v":null},null,{"$f":"SUM(Lançamentos!F4:F303)","v":null},null,{"$f":"B5-D5","v":null},null,{"$f":"Configuração!B4","v":null}]
[]
[]
["📊 Orçamento x gastos por categoria",{"$nulls":4},"🥧 Para onde o dinheiro está indo?"]
[]
["Categoria","Gasto","Orçamento","Status"]
["Despesas fixas",{"$f":"SUMIF(Lançamentos!$C$4:$C$303,A11,Lançamentos!$F$4:$F$303)","v":null},{"$f":"IFERROR(VLOOKUP(A11,Configuração!$A$7:$B$17,2,FALSE),0)","v":null},{"$f":"IF(B11>C11,\"⚠️ Acima\",\"✓ Dentro\")","v":null}]
["Alimentação",{"$f":"SUMIF(Lançamentos!$C$4:$C$303,A12,Lançamentos!$F$4:$F$303)","v":null},{"$f":"IFERROR(VLOOKUP(A12,Configuração!$A$7:$B$17,2,FALSE),0)","v":null},{"$f":"IF(B12>C12,\"⚠️ Acima\",\"✓ Dentro\")","v":null}]
["Contas da casa",{"$f":"SUMIF(Lançamentos!$C$4:$C$303,A13,Lançamentos!$F$4:$F$303)","v":null},{"$f":"IFERROR(VLOOKUP(A13,Configuração!$A$7:$B$17,2,FALSE),0)","v":null},{"$f":"IF(B13>C13,\"⚠️ Acima\",\"✓ Dentro\")","v":null}]
["Transporte",{"$f":"SUMIF(Lançamentos!$C$4:$C$303,A14,Lançamentos!$F$4:$F$303)","v":null},{"$f":"IFERROR(VLOOKUP(A14,Configuração!$A$7:$B$17,2,FALSE),0)","v":null},{"$f":"IF(B14>C14,\"⚠️ Acima\",\"✓ Dentro\")","v":null}]
["Saúde",{"$f":"SUMIF(Lançamentos!$C$4:$C$303,A15,Lançamentos!$F$4:$F$303)","v":null},{"$f":"IFERROR(VLOOKUP(A15,Configuração!$A$7:$B$17,2,FALSE),0)","v":null},{"$f":"IF(B15>C15,\"⚠️ Acima\",\"✓ Dentro\")","v":null}]
["Compras",{"$f":"SUMIF(Lançamentos!$C$4:$C$303,A16,Lançamentos!$F$4:$F$303)","v":null},{"$f":"IFERROR(VLOOKUP(A16,Configuração!$A$7:$B$17,2,FALSE),0)","v":null},{"$f":"IF(B16>C16,\"⚠️ Acima\",\"✓ Dentro\")","v":null}]
["Educação",{"$f":"SUMIF(Lançamentos!$C$4:$C$303,A17,Lançamentos!$F$4:$F$303)","v":null},{"$f":"IFERROR(VLOOKUP(A17,Configuração!$A$7:$B$17,2,FALSE),0)","v":null},{"$f":"IF(B17>C17,\"⚠️ Acima\",\"✓ Dentro\")","v":null}]
["Lazer",{"$f":"SUMIF(Lançamentos!$C$4:$C$303,A18,Lançamentos!$F$4:$F$303)","v":null},{"$f":"IFERROR(VLOOKUP(A18,Configuração!$A$7:$B$17,2,FALSE),0)","v":null},{"$f":"IF(B18>C18,\"⚠️ Acima\",\"✓ Dentro\")","v":null}]
["Assinaturas",{"$f":"SUMIF(Lançamentos!$C$4:$C$303,A19,Lançamentos!$F$4:$F$303)","v":null},{"$f":"IFERROR(VLOOKUP(A19,Configuração!$A$7:$B$17,2,FALSE),0)","v":null},{"$f":"IF(B19>C19,\"⚠️ Acima\",\"✓ Dentro\")","v":null}]
["Cartão",{"$f":"SUMIF(Lançamentos!$C$4:$C$303,A20,Lançamentos!$F$4:$F$303)","v":null},{"$f":"IFERROR(VLOOKUP(A20,Configuração!$A$7:$B$17,2,FALSE),0)","v":null},{"$f":"IF(B20>C20,\"⚠️ Acima\",\"✓ Dentro\")","v":null}]
["Outras despesas",{"$f":"SUMIF(Lançamentos!$C$4:$C$303,A21,Lançamentos!$F$4:$F$303)","v":null},{"$f":"IFERROR(VLOOKUP(A21,Configuração!$A$7:$B$17,2,FALSE),0)","v":null},{"$f":"IF(B21>C21,\"⚠️ Acima\",\"✓ Dentro\")","v":null}]
[{"$nulls":5},"Registre suas despesas na aba \"Lançamentos\" para o gráfico aparecer."]
[]
["📈 Acompanhamento mensal"]
["Mês","Receitas","Despesas","Saldo"]
[{"$f":"TEXT(DATE(Configuração!$B$2,1,1),\"mmmm\")","v":null},{"$f":"SUMIFS(Lançamentos!$E$4:$E$303,Lançamentos!$B$4:$B$303,\">=\"&DATE(Configuração!$B$2,1,1),Lançamentos!$B$4:$B$303,\"<\"&EDATE(DATE(Configuração!$B$2,1,1),1))","v":null},{"$f":"SUMIFS(Lançamentos!$F$4:$F$303,Lançamentos!$B$4:$B$303,\">=\"&DATE(Configuração!$B$2,1,1),Lançamentos!$B$4:$B$303,\"<\"&EDATE(DATE(Configuração!$B$2,1,1),1))","v":null},{"$f":"B26-C26","v":null}]
[{"$f":"TEXT(DATE(Configuração!$B$2,2,1),\"mmmm\")","v":null},{"$f":"SUMIFS(Lançamentos!$E$4:$E$303,Lançamentos!$B$4:$B$303,\">=\"&DATE(Configuração!$B$2,2,1),Lançamentos!$B$4:$B$303,\"<\"&EDATE(DATE(Configuração!$B$2,2,1),1))","v":null},{"$f":"SUMIFS(Lançamentos!$F$4:$F$303,Lançamentos!$B$4:$B$303,\">=\"&DATE(Configuração!$B$2,2,1),Lançamentos!$B$4:$B$303,\"<\"&EDATE(DATE(Configuração!$B$2,2,1),1))","v":null},{"$f":"B27-C27","v":null}]
[{"$f":"TEXT(DATE(Configuração!$B$2,3,1),\"mmmm\")","v":null},{"$f":"SUMIFS(Lançamentos!$E$4:$E$303,Lançamentos!$B$4:$B$303,\">=\"&DATE(Configuração!$B$2,3,1),Lançamentos!$B$4:$B$303,\"<\"&EDATE(DATE(Configuração!$B$2,3,1),1))","v":null},{"$f":"SUMIFS(Lançamentos!$F$4:$F$303,Lançamentos!$B$4:$B$303,\">=\"&DATE(Configuração!$B$2,3,1),Lançamentos!$B$4:$B$303,\"<\"&EDATE(DATE(Configuração!$B$2,3,1),1))","v":null},{"$f":"B28-C28","v":null}]
[{"$f":"TEXT(DATE(Configuração!$B$2,4,1),\"mmmm\")","v":null},{"$f":"SUMIFS(Lançamentos!$E$4:$E$303,Lançamentos!$B$4:$B$303,\">=\"&DATE(Configuração!$B$2,4,1),Lançamentos!$B$4:$B$303,\"<\"&EDATE(DATE(Configuração!$B$2,4,1),1))","v":null},{"$f":"SUMIFS(Lançamentos!$F$4:$F$303,Lançamentos!$B$4:$B$303,\">=\"&DATE(Configuração!$B$2,4,1),Lançamentos!$B$4:$B$303,\"<\"&EDATE(DATE(Configuração!$B$2,4,1),1))","v":null},{"$f":"B29-C29","v":null}]
[{"$f":"TEXT(DATE(Configuração!$B$2,5,1),\"mmmm\")","v":null},{"$f":"SUMIFS(Lançamentos!$E$4:$E$303,Lançamentos!$B$4:$B$303,\">=\"&DATE(Configuração!$B$2,5,1),Lançamentos!$B$4:$B$303,\"<\"&EDATE(DATE(Configuração!$B$2,5,1),1))","v":null},{"$f":"SUMIFS(Lançamentos!$F$4:$F$303,Lançamentos!$B$4:$B$303,\">=\"&DATE(Configuração!$B$2,5,1),Lançamentos!$B$4:$B$303,\"<\"&EDATE(DATE(Configuração!$B$2,5,1),1))","v":null},{"$f":"B30-C30","v":null}]
[{"$f":"TEXT(DATE(Configuração!$B$2,6,1),\"mmmm\")","v":null},{"$f":"SUMIFS(Lançamentos!$E$4:$E$303,Lançamentos!$B$4:$B$303,\">=\"&DATE(Configuração!$B$2,6,1),Lançamentos!$B$4:$B$303,\"<\"&EDATE(DATE(Configuração!$B$2,6,1),1))","v":null},{"$f":"SUMIFS(Lançamentos!$F$4:$F$303,Lançamentos!$B$4:$B$303,\">=\"&DATE(Configuração!$B$2,6,1),Lançamentos!$B$4:$B$303,\"<\"&EDATE(DATE(Configuração!$B$2,6,1),1))","v":null},{"$f":"B31-C31","v":null}]
[{"$f":"TEXT(DATE(Configuração!$B$2,7,1),\"mmmm\")","v":null},{"$f":"SUMIFS(Lançamentos!$E$4:$E$303,Lançamentos!$B$4:$B$303,\">=\"&DATE(Configuração!$B$2,7,1),Lançamentos!$B$4:$B$303,\"<\"&EDATE(DATE(Configuração!$B$2,7,1),1))","v":null},{"$f":"SUMIFS(Lançamentos!$F$4:$F$303,Lançamentos!$B$4:$B$303,\">=\"&DATE(Configuração!$B$2,7,1),Lançamentos!$B$4:$B$303,\"<\"&EDATE(DATE(Configuração!$B$2,7,1),1))","v":null},{"$f":"B32-C32","v":null}]
[{"$f":"TEXT(DATE(Configuração!$B$2,8,1),\"mmmm\")","v":null},{"$f":"SUMIFS(Lançamentos!$E$4:$E$303,Lançamentos!$B$4:$B$303,\">=\"&DATE(Configuração!$B$2,8,1),Lançamentos!$B$4:$B$303,\"<\"&EDATE(DATE(Configuração!$B$2,8,1),1))","v":null},{"$f":"SUMIFS(Lançamentos!$F$4:$F$303,Lançamentos!$B$4:$B$303,\">=\"&DATE(Configuração!$B$2,8,1),Lançamentos!$B$4:$B$303,\"<\"&EDATE(DATE(Configuração!$B$2,8,1),1))","v":null},{"$f":"B33-C33","v":null}]
[{"$f":"TEXT(DATE(Configuração!$B$2,9,1),\"mmmm\")","v":null},{"$f":"SUMIFS(Lançamentos!$E$4:$E$303,Lançamentos!$B$4:$B$303,\">=\"&DATE(Configuração!$B$2,9,1),Lançamentos!$B$4:$B$303,\"<\"&EDATE(DATE(Configuração!$B$2,9,1),1))","v":null},{"$f":"SUMIFS(Lançamentos!$F$4:$F$303,Lançamentos!$B$4:$B$303,\">=\"&DATE(Configuração!$B$2,9,1),Lançamentos!$B$4:$B$303,\"<\"&EDATE(DATE(Configuração!$B$2,9,1),1))","v":null},{"$f":"B34-C34","v":null}]
[{"$f":"TEXT(DATE(Configuração!$B$2,10,1),\"mmmm\")","v":null},{"$f":"SUMIFS(Lançamentos!$E$4:$E$303,Lançamentos!$B$4:$B$303,\">=\"&DATE(Configuração!$B$2,10,1),Lançamentos!$B$4:$B$303,\"<\"&EDATE(DATE(Configuração!$B$2,10,1),1))","v":null},{"$f":"SUMIFS(Lançamentos!$F$4:$F$303,Lançamentos!$B$4:$B$303,\">=\"&DATE(Configuração!$B$2,10,1),Lançamentos!$B$4:$B$303,\"<\"&EDATE(DATE(Configuração!$B$2,10,1),1))","v":null},{"$f":"B35-C35","v":null}]
[{"$f":"TEXT(DATE(Configuração!$B$2,11,1),\"mmmm\")","v":null},{"$f":"SUMIFS(Lançamentos!$E$4:$E$303,Lançamentos!$B$4:$B$303,\">=\"&DATE(Configuração!$B$2,11,1),Lançamentos!$B$4:$B$303,\"<\"&EDATE(DATE(Configuração!$B$2,11,1),1))","v":null},{"$f":"SUMIFS(Lançamentos!$F$4:$F$303,Lançamentos!$B$4:$B$303,\">=\"&DATE(Configuração!$B$2,11,1),Lançamentos!$B$4:$B$303,\"<\"&EDATE(DATE(Configuração!$B$2,11,1),1))","v":null},{"$f":"B36-C36","v":null}]
[{"$f":"TEXT(DATE(Configuração!$B$2,12,1),\"mmmm\")","v":null},{"$f":"SUMIFS(Lançamentos!$E$4:$E$303,Lançamentos!$B$4:$B$303,\">=\"&DATE(Configuração!$B$2,12,1),Lançamentos!$B$4:$B$303,\"<\"&EDATE(DATE(Configuração!$B$2,12,1),1))","v":null},{"$f":"SUMIFS(Lançamentos!$F$4:$F$303,Lançamentos!$B$4:$B$303,\">=\"&DATE(Configuração!$B$2,12,1),Lançamentos!$B$4:$B$303,\"<\"&EDATE(DATE(Configuração!$B$2,12,1),1))","v":null},{"$f":"B37-C37","v":null}]

{"sheet":"Lançamentos","index":1,"n_rows":3,"n_cols":7,"rows_kept":3,"merged":[[0,0,0,6]]}
["📥 LANÇAMENTOS — PREENCHA AQUI"]
[]
["Descrição","Data","Categoria","Tipo","Receita (R$)","Despesa (R$)","Observação"]

{"sheet":"Configuração","index":2,"n_rows":17,"n_cols":4,"rows_kept":17,"merged":[[0,0,0,3]]}
["⚙️ CONFIGURAÇÃO"]
["Ano",2026,null,"Categorias para seleção"]
["Moeda","R$",null,"Despesas fixas"]
["Meta de economia mensal",0,null,"Alimentação"]
["Orçamento total mensal",{"$f":"SUM(B7:B17)","v":null},null,"Contas da casa"]
["Categoria","Orçamento mensal",null,"Transporte"]
["Despesas fixas",0,null,"Saúde"]
["Alimentação",0,null,"Compras"]
["Contas da casa",0,null,"Educação"]
["Transporte",0,null,"Lazer"]
["Saúde",0,null,"Assinaturas"]
["Compras",0,null,"Cartão"]
["Educação",0,null,"Outras despesas"]
["Lazer",0,null,"Receitas"]
["Assinaturas",0]
["Cartão",0]
["Outras despesas",0]

{"sheet":"Gráfico","index":3,"n_rows":12,"n_cols":2,"rows_kept":12,"hidden":true}
["Categoria","Gasto"]
["Despesas fixas",{"$f":"SUMIF(Lançamentos!$C$4:$C$303,A2,Lançamentos!$F$4:$F$303)","v":null}]
["Alimentação",{"$f":"SUMIF(Lançamentos!$C$4:$C$303,A3,Lançamentos!$F$4:$F$303)","v":null}]
["Contas da casa",{"$f":"SUMIF(Lançamentos!$C$4:$C$303,A4,Lançamentos!$F$4:$F$303)","v":null}]
["Transporte",{"$f":"SUMIF(Lançamentos!$C$4:$C$303,A5,Lançamentos!$F$4:$F$303)","v":null}]
["Saúde",{"$f":"SUMIF(Lançamentos!$C$4:$C$303,A6,Lançamentos!$F$4:$F$303)","v":null}]
["Compras",{"$f":"SUMIF(Lançamentos!$C$4:$C$303,A7,Lançamentos!$F$4:$F$303)","v":null}]
["Educação",{"$f":"SUMIF(Lançamentos!$C$4:$C$303,A8,Lançamentos!$F$4:$F$303)","v":null}]
["Lazer",{"$f":"SUMIF(Lançamentos!$C$4:$C$303,A9,Lançamentos!$F$4:$F$303)","v":null}]
["Assinaturas",{"$f":"SUMIF(Lançamentos!$C$4:$C$303,A10,Lançamentos!$F$4:$F$303)","v":null}]
["Cartão",{"$f":"SUMIF(Lançamentos!$C$4:$C$303,A11,Lançamentos!$F$4:$F$303)","v":null}]
["Outras despesas",{"$f":"SUMIF(Lançamentos!$C$4:$C$303,A12,Lançamentos!$F$4:$F$303)","v":null}]